[Event "XV South American-ch Open U20 2019"]
[Site "Asuncion"]
[Date "2019.05.11"]
[Round "1.10"]
[White "Vazquez, Facundo"]
[Black "Avalos Sanabria, Augusto Alfredo"]
[Result "1-0"]
[ECO "D10"]
[WhiteElo "2086"]
[BlackElo "1474"]
[Annotator "NA RC"]
[PlyCount "43"]
[EventDate "2019.05.11"]
[EventType "swiss"]
[EventCountry "PAR"]
[SourceTitle "playchess.com"]
[Source "ChessBase"]
[SourceQuality "1"]
[TimeControl "5400+30"]

1. d4 d5 2. c4 c6 3. cxd5 cxd5 4. Nc3 Nf6 5. f3 e6 6. e4 Be7 7. e5 Nfd7 8. f4 O-O 9. Nf3 f6 10. Bd3 fxe5 11. fxe5 Nc6 12. O-O Qb6 13. Na4 Qd8 14. a3 b6 15. Qc2 Bb7 16. Bxh7+ Kh8 17. Bg6 Rc8 18. Qe2 a6 19. Be3 Na5 20. Nh4 Bg5 21. Qh5+ Bh6 22. Bxh6 1-0

[Event "XV South American-ch Open U20 2019"]
[Site "Asuncion"]
[Date "2019.05.11"]
[Round "1.11"]
[White "Ayala Ruiz, Miguel Angel"]
[Black "Suarez, Pedro"]
[Result "0-1"]
[ECO "C41"]
[WhiteElo "1444"]
[BlackElo "2077"]
[Annotator "NA RC"]
[PlyCount "56"]
[EventDate "2019.05.11"]
[EventType "swiss"]
[EventCountry "PAR"]
[SourceTitle "playchess.com"]
[Source "ChessBase"]
[SourceQuality "1"]
[TimeControl "5400+30"]

1. e4 d6 2. d4 Nf6 3. Nc3 Nbd7 4. Nf3 e5 5. dxe5 dxe5 6. a3 Be7 7. Bc4 O-O 8. O-O c6 9. Qe2 b5 10. Ba2 a5 11. Nb1 Qc7 12. Nbd2 Nc5 13. Ne1 Rd8 14. c3 Be6 15. Bxe6 Nxe6 16. Ndf3 Nc5 17. Nd2 Bf8 18. Nc2 Rd7 19. b4 Na4 20. c4 Nc3 21. Qe3 axb4 22. axb4 Rxa1 23. Nxa1 Bxb4 24. Nc2 c5 25. f3 h6 26. cxb5 Nxb5 27. Nc4 Bc3 28. N2a3 Bd4 0-1

[Event "XV South American-ch Open U20 2019"]
[Site "Asuncion"]
[Date "2019.05.12"]
[Round "2.2"]
[White "Munoz, Francisco Javier"]
[Black "Heinechen, Juan"]
[Result "1-0"]
[ECO "C42"]
[WhiteElo "2308"]
[BlackElo "2123"]
[Annotator "NA"]
[PlyCount "59"]
[EventDate "2019.05.11"]
[EventType "swiss"]
[EventCountry "PAR"]
[SourceTitle "playchess.com"]
[Source "ChessBase"]
[SourceQuality "1"]
[TimeControl "5400+30"]

1. e4 {[%emt 0:00:30]} e5 {[%emt 0:00:30]} 2. Nf3 {[%emt 0:00:00]} Nf6 {[%emt 0:00:00]} 3. Nxe5 {[%emt 0:01:00]} d6 {[%emt 0:00:00]} 4. Nf3 {[%emt 0:00:30]} Nxe4 {[%emt 0:00:30]} 5. Nc3 {[%emt 0:00:30]} Nxc3 {[%emt 0:00:00]} 6. dxc3 {[%emt 0:00:00]} Be7 {[%emt 0:01:00]} 7. Be3 {[%emt 0:03:00]} Nc6 $11 {[%emt 0:11:30]} 8. Qd2 {[%emt 0:00:30]} Be6 {[%emt 0:00:00]} 9. O-O-O {[%emt 0:12:30]} Qd7 {[%emt 0:00:00]} 10. Kb1 {[%emt 0:01:30]} Bf6 {[%emt 0:11:30]} 11. h3 {[%emt 0:36:30]} a6 {[%emt 0:31:30]} 12. Ng5 {[%emt 0:00:30]} Bxg5 {[%emt 0:00:30]} 13. Bxg5 {[%emt 0:00:30]} f6 {[%emt 0:00:30]} 14. Be3 {[%emt 0:00:30]} O-O-O {[%emt 0:00:30]} 15. Be2 {[%emt 0:00:30]} Rhe8 {[%emt 0:00:30]} 16. b3 {[%emt 0:00:30]} Bf5 {[%emt 0:00:30]} 17. c4 {[%emt 0:00:30]} a5 {[%emt 0:00:30]} 18. a3 {[%emt 0:00:30]} Qf7 {[%emt 0:04:30]} 19. Qc3 {[%emt 0:07:30]} Qg6 {[%emt 0:05:30]} 20. g4 {[%emt 0:01:30]} Be4 {[%emt 0:01:30]} 21. Rhg1 {[%emt 0:01:30]} h6 {[%emt 0:07:30]} 22. Kb2 {[%emt 0:01:30]} Qf7 {[%emt 0:03:08]} 23. b4 {[%emt 0:07:30]} axb4 {[%emt 0:05:07]} 24. axb4 {[%emt 0:00:30]} d5 {[%emt 0:00:34]} 25. cxd5 {[%emt 0:01:30]} Bxd5 {[%emt 0:00:22]} 26. Rd2 {[%emt 0:01:54]} Ne5 {[%emt 0:00:43]} 27. Ra1 {[%emt 0:00:36]} Rd6 {[%emt 0:04:51]} 28. Bc5 {[%emt 0:02:52]} Rc6 {[%emt 0:00:50]} 29. Qd4 {[%emt 0:01:03]} b6 30. Rd3 1-0

[Event "XV South American-ch Open U20 2019"]
[Site "Asuncion"]
[Date "2019.05.12"]
[Round "2.3"]
[White "Suarez, Pedro"]
[Black "Aguilar, Luis Miguel"]
[Result "1-0"]
[ECO "A61"]
[WhiteElo "2077"]
[BlackElo "2193"]
[Annotator "NA"]
[PlyCount "81"]
[EventDate "2019.05.11"]
[EventType "swiss"]
[EventCountry "PAR"]
[SourceTitle "playchess.com"]
[Source "ChessBase"]
[SourceQuality "1"]
[TimeControl "5400+30"]

1. d4 {[%emt 0:00:30]} Nf6 {[%emt 0:04:30]} 2. c4 {[%emt 0:00:00]} c5 {[%emt 0:00:30]} 3. d5 {[%emt 0:00:00]} e6 {[%emt 0:00:30]} 4. Nc3 {[%emt 0:00:30]} exd5 {[%emt 0:00:00]} 5. cxd5 {[%emt 0:00:30]} d6 {[%emt 0:00:00]} 6. Nf3 {[%emt 0:00:30]} g6 {[%emt 0:00:30]} 7. Bf4 {[%emt 0:00:00]} a6 {[%emt 0:00:30]} 8. a4 {[%emt 0:00:00]} Bg7 {[%emt 0:08:30]} 9. h3 {[%emt 0:00:30]} O-O {[%emt 0:00:30]} 10. e3 {[%emt 0:00:30]} Ne8 {[%emt 0:03:30]} 11. Be2 {[%emt 0:02:30]} Nd7 {[%emt 0:06:30]} 12. O-O {[%emt 0:03:30]} Rb8 {[%emt 0:02:30]} 13. Qc2 {[%emt 0:04:30]} Qe7 {[%emt 0:02:30]} 14. Rfd1 {[%emt 0:10:30]} Ne5 {[%emt 0:03:30]} 15. Rab1 {[%emt 0:05:30]} Bf5 {[%emt 0:13:30]} 16. e4 {[%emt 0:02:30]} Bd7 {[%emt 0:00:00]} 17. Nxe5 {[%emt 0:07:30]} Bxe5 {[%emt 0:00:00]} 18. Bxe5 {[%emt 0:00:30]} Qxe5 {[%emt 0:01:30]} 19. b4 {[%emt 0:03:30]} f5 {[%emt 0:29:30]} 20. bxc5 {[%emt 0:02:30]} dxc5 {[%emt 0:00:00]} 21. d6 {[%emt 0:04:30]} fxe4 {[%emt 0:02:00]} 22. Bc4+ {[%emt 0:00:30]} Kh8 {[%emt 0:00:30]} 23. Rd5 {[%emt 0:00:30]} Qf4 {[%emt 0:01:17]} 24. Nxe4 {[%emt 0:00:30]} Bc6 {[%emt 0:00:58]} 25. g3 {[%emt 0:01:30]} Qh6 {[%emt 0:07:06]} 26. Rxc5 {[%emt 0:06:30]} Rd8 {[%emt 0:00:46]} 27. Ng5 {[%emt 0:01:30]} Rxd6 {[%emt 0:04:58]} 28. Qc3+ {[%emt 0:01:30]} Nf6 {[%emt 0:01:13]} 29. Qe5 {[%emt 0:01:30]} Rd7 {[%emt 0:02:16]} 30. Ne6 {[%emt 0:00:30]} Re7 {[%emt 0:02:46]} 31. Qc3 {[%emt 0:01:30]} Rxe6 {[%emt 0:02:36]} 32. Bxe6 {[%emt 0:00:00]} Qg7 {[%emt 0:00:31]} 33. Re1 {[%emt 0:01:00]} Ne8 {[%emt 0:00:32]} 34. Qxg7+ {[%emt 0:00:30]} Nxg7 {[%emt 0:00:11]} 35. Bd5 {[%emt 0:00:00]} Bxa4 {[%emt 0:00:13]} 36. Bxb7 {[%emt 0:00:00]} Bb5 {[%emt 0:00:19]} 37. Rc7 {[%emt 0:00:30]} Nf5 {[%emt 0:00:39]} 38. g4 {[%emt 0:00:30]} Nd4 {[%emt 0:01:03]} 39. Ree7 {[%emt 0:00:00]} Nf3+ {[%emt 0:00:26]} 40. Bxf3 {[%emt 0:00:00]} Rxf3 {[%emt 0:00:04]} 41. Rc8+ {[%emt 0:00:00]} 1-0

[Event "XV South American-ch Open U20 2019"]
[Site "Asuncion"]
[Date "2019.05.12"]
[Round "2.4"]
[White "Zambrano Acebo, Jean Junior"]
[Black "Menacho Admen, Victor Gabriel"]
[Result "1-0"]
[ECO "C62"]
[WhiteElo "2174"]
[BlackElo "1103"]
[Annotator "NA"]
[PlyCount "43"]
[EventDate "2019.05.11"]
[EventType "swiss"]
[EventCountry "PAR"]
[SourceTitle "playchess.com"]
[Source "ChessBase"]
[SourceQuality "1"]
[TimeControl "5400+30"]

1. e4 {[%emt 0:07:30]} e5 {[%emt 0:00:30]} 2. Nf3 {[%emt 0:00:00]} Nc6 {[%emt 0:00:00]} 3. Bb5 {[%emt 0:02:00]} d6 {[%emt 0:01:00]} 4. d4 {[%emt 0:03:30]} f6 {[%emt 0:05:30]} 5. h3 {[%emt 0:06:30]} Bd7 {[%emt 0:07:30]} 6. Nc3 {[%emt 0:04:30]} a6 {[%emt 0:02:30]} 7. Ba4 {[%emt 0:00:30]} exd4 {[%emt 0:09:30]} 8. Nxd4 {[%emt 0:00:30]} Nxd4 {[%emt 0:00:30]} 9. Bxd7+ {[%emt 0:00:00]} Qxd7 {[%emt 0:00:00]} 10. Qxd4 {[%emt 0:00:00]} Ne7 {[%emt 0:09:00]} 11. b3 {[%emt 0:23:30]} Nc6 {[%emt 0:03:30]} 12. Qd2 {[%emt 0:02:30]} Ne7 {[%emt 0:15:30]} 13. Bb2 {[%emt 0:03:30]} O-O-O {[%emt 0:02:30]} 14. O-O-O {[%emt 0:01:30]} c6 {[%emt 0:01:30]} 15. f4 {[%emt 0:06:30]} d5 {[%emt 0:09:30]} 16. e5 {[%emt 0:04:30]} fxe5 {[%emt 0:01:30]} 17. Na4 {[%emt 0:01:30]} Kb8 {[%emt 0:02:30]} 18. Bxe5+ {[%emt 0:00:30]} Ka7 {[%emt 0:01:30]} 19. Qd4+ {[%emt 0:00:00]} b6 {[%emt 0:03:30]} 20. Qxb6+ {[%emt 0:00:00]} Ka8 {[%emt 0:00:30]} 21. Qxa6+ {[%emt 0:00:30]} Qa7 {[%emt 0:00:30]} 22. Nb6# 1-0

[Event "XV South American-ch Open U20 2019"]
[Site "Asuncion"]
[Date "2019.05.12"]
[Round "2.5"]
[White "Zapata Charles, Santiago"]
[Black "Vazquez, Facundo"]
[Result "1-0"]
[ECO "C06"]
[WhiteElo "2322"]
[BlackElo "2086"]
[Annotator "ChessBase"]
[PlyCount "112"]
[EventDate "2019.05.11"]
[EventType "swiss"]
[EventCountry "PAR"]
[SourceTitle "playchess.com"]
[Source "ChessBase"]
[SourceQuality "1"]
[TimeControl "5400+30"]

1. e4 {[%emt 0:00:30]} e6 {[%emt 0:00:30]} 2. d4 {[%emt 0:00:00]} d5 {[%emt 0:00:30]} 3. Nd2 {[%emt 0:00:00]} Nf6 {[%emt 0:00:00]} 4. e5 {[%emt 0:00:00]} Nfd7 {[%emt 0:00:00]} 5. Bd3 {[%emt 0:00:00]} c5 {[%emt 0:00:30]} 6. c3 {[%emt 0:00:00]} Nc6 {[%emt 0:01:30]} 7. Ne2 {[%emt 0:00:00]} cxd4 {[%emt 0:00:00]} 8. cxd4 {[%emt 0:00:00]} f6 {[%emt 0:03:00]} 9. exf6 {[%emt 0:00:00]} Nxf6 {[%emt 0:00:00]} 10. O-O {[%emt 0:00:00]} Bd6 {[%emt 0:02:00]} 11. Nf3 {[%emt 0:00:00]} Qc7 {[%emt 0:00:30]} 12. h3 {[%emt 0:00:30]} O-O {[%emt 0:04:30]} 13. Be3 {[%emt 0:01:30]} Bd7 {[%emt 0:03:30]} 14. Rc1 {[%emt 0:00:00]} Rac8 {[%emt 0:06:30]} 15. a3 {[%emt 0:04:00]} Qb6 {[%emt 0:07:30]} 16. b4 {[%emt 0:02:30]} a5 {[%emt 0:07:30]} 17. b5 {[%emt 0:01:30]} Nd8 {[%emt 0:01:30]} 18. Rxc8 {[%emt 0:04:30]} Bxc8 {[%emt 0:00:30]} 19. a4 {[%emt 0:00:30]} Nf7 {[%emt 0:00:30]} 20. Ne5 {[%emt 0:01:30]} Qd8 {[%emt 0:07:30]} 21. f4 {[%emt 0:01:30]} Bb4 {[%emt 0:06:30]} 22. Qb1 {[%emt 0:03:30]} Nd6 {[%emt 0:06:30]} 23. Ng3 {[%emt 0:12:30]} Qe7 {[%emt 0:05:30]} 24. Rf3 {[%emt 0:03:30]} g6 {[%emt 0:03:30]} 25. Rf2 {[%emt 0:13:30]} Nf5 {[%emt 0:02:30]} 26. Nxf5 {[%emt 0:00:30]} exf5 {[%emt 0:00:30]} 27. Bd2 {[%emt 0:26:30]} Bxd2 {[%emt 0:18:51]} 28. Rxd2 {[%emt 0:00:30]} Nh5 {[%emt 0:00:36]} 29. Rf2 {[%emt 0:00:30]} Be6 {[%emt 0:00:37]} 30. Qe1 {[%emt 0:00:30]} Qb4 {[%emt 0:00:33]} 31. Qxb4 {[%emt 0:00:30]} axb4 {[%emt 0:00:37]} 32. Rb2 {[%emt 0:00:30]} Nxf4 {[%emt 0:00:34]} 33. Bf1 {[%emt 0:03:30]} Ra8 {[%emt 0:01:37]} 34. Rxb4 {[%emt 0:00:30]} Kf8 {[%emt 0:00:30]} 35. b6 {[%emt 0:00:30]} Ke7 {[%emt 0:00:30]} 36. Bb5 {[%emt 0:00:30]} Bc8 {[%emt 0:00:30]} 37. Kf2 {[%emt 0:08:24]} Ne6 {[%emt 0:01:43]} 38. Ke3 {[%emt 0:00:57]} Nf8 {[%emt 0:01:35]} 39. Rb2 {[%emt 0:03:46]} g5 {[%emt 0:02:59]} 40. Rc2 {[%emt 0:05:06]} f4+ {[%emt 0:00:19]} 41. Kd2 {[%emt 0:00:49]} Ne6 {[%emt 0:00:04]} 42. Kc3 {[%emt 0:00:19]} Nd8 {[%emt 0:01:59]} 43. Kb4 {[%emt 0:00:44]} Ne6 {[%emt 0:00:25]} 44. Re2 {[%emt 0:01:46]} Kf6 {[%emt 0:01:50]} 45. Kc3 {[%emt 0:01:12]} h5 {[%emt 0:00:13]} 46. Nd3 {[%emt 0:00:13]} g4 {[%emt 0:01:57]} 47. hxg4 {[%emt 0:00:05]} hxg4 {[%emt 0:00:01]} 48. Nb4 {[%emt 0:00:21]} f3 {[%emt 0:00:51]} 49. gxf3 {[%emt 0:00:01]} gxf3 {[%emt 0:00:02]} 50. Nxd5+ {[%emt 0:00:13]} Kg5 {[%emt 0:00:21]} 51. Re5+ {[%emt 0:00:47]} Kg4 {[%emt 0:00:50]} 52. Ne7 {[%emt 0:01:54]} Nf4 {[%emt 0:00:54]} 53. Kd2 {[%emt 0:00:27]} Be6 {[%emt 0:00:40]} 54. Ke3 {[%emt 0:01:13]} Rh8 {[%emt 0:01:09]} 55. Re4 {[%emt 0:00:15]} Rf8 {[%emt 0:01:11]} 56. Ng6 {[%emt 0:00:08]} f2 1-0

[Event "XV South American-ch Open U20 2019"]
[Site "Asuncion"]
[Date "2019.05.12"]
[Round "2.7"]
[White "Cosme Contreras, Trilce"]
[Black "Cantero, Rodolfo"]
[Result "0-1"]
[ECO "A32"]
[WhiteElo "2051"]
[BlackElo "2059"]
[Annotator "NA RC"]
[PlyCount "114"]
[EventDate "2019.05.11"]
[EventType "swiss"]
[EventCountry "PAR"]
[SourceTitle "playchess.com"]
[Source "ChessBase"]
[SourceQuality "1"]
[TimeControl "5400+30"]

1. d4 Nf6 2. c4 e6 3. Nf3 Bb4+ 4. Bd2 c5 5. e3 O-O 6. Nc3 cxd4 7. Nxd4 Nc6 8. Be2 d5 9. Nxc6 bxc6 10. O-O Bd6 11. Rc1 Rb8 12. Na4 Ne4 13. Be1 f5 14. f3 Nf6 15. c5 Bc7 16. b3 Qe8 17. Nb2 Qh5 18. f4 Qh6 19. Bc3 e5 20. Nd3 Nd7 21. Bb2 Ba6 22. g3 e4 23. Nf2 Bxe2 24. Qxe2 Rb5 25. Bd4 a5 26. Kh1 a4 27. bxa4 Ra5 28. Rg1 Rxa4 29. Rc2 g6 30. Ba1 Bd8 31. g4 Qh4 32. Rg3 fxg4 33. Nxg4 Bf6 34. Nxf6+ Nxf6 35. Qg2 Qh5 36. Rc1 Nd7 37. Qb2 Nf6 38. Rf1 Qf5 39. Qg2 Nd7 40. Rg5 Qf7 41. f5 d4 42. Bxd4 Rxa2 43. Qg3 Qc4 44. Rb1 Rf7 45. Qg1 Qe2 46. Rf1 Kf8 47. Rf4 Rd2 48. Rf1 Ke7 49. f6+ Nxf6 50. Re5+ Kf8 51. Rg5 Nh5 52. Rxf7+ Kxf7 53. Rg2 Qf3 54. Bc3 Re2 55. Bd4 Ke6 56. h4 Ng3+ 57. Kh2 Nf1+ 0-1

[Event "XV South American-ch Open U20 2019"]
[Site "Asuncion"]
[Date "2019.05.12"]
[Round "2.9"]
[White "Gomez Barrera, Gonzalo Andres"]
[Black "Allo Collante, Enrique"]
[Result "0-1"]
[ECO "B12"]
[WhiteElo "2058"]
[BlackElo "1595"]
[Annotator "NA RC"]
[PlyCount "58"]
[EventDate "2019.05.11"]
[EventType "swiss"]
[EventCountry "PAR"]
[SourceTitle "playchess.com"]
[Source "ChessBase"]
[SourceQuality "1"]
[TimeControl "5400+30"]

1. e4 c6 2. d4 d5 3. e5 Bf5 4. h4 h5 5. Bd3 Bxd3 6. Qxd3 e6 7. Bg5 Be7 8. Nf3 Nh6 9. Bxh6 Rxh6 10. c4 dxc4 11. Qxc4 Rg6 12. O-O Nd7 13. Nc3 Nb6 14. Qb3 Rg4 15. a4 a5 16. Rfe1 Bb4 17. Re2 Bxc3 18. bxc3 Qd5 19. Qxd5 Nxd5 20. Rc2 Ke7 21. Rb1 b6 22. g3 f5 23. exf6+ gxf6 24. Kh2 Re4 25. Nd2 Re2 26. Kg2 Rb8 27. Kf3 Rxd2 28. Rxd2 Nxc3 29. Rc2 Nxb1 0-1

[Event "XV South American-ch Open U20 2019"]
[Site "Asuncion"]
[Date "2019.05.12"]
[Round "2.10"]
[White "Orrego Palermo, Marcelo"]
[Black "Benitez Galeano, Alejandro"]
[Result "0-1"]
[ECO "D02"]
[WhiteElo "1632"]
[BlackElo "2052"]
[Annotator "NA"]
[PlyCount "66"]
[EventDate "2019.05.11"]
[EventType "swiss"]
[EventCountry "PAR"]
[SourceTitle "playchess.com"]
[Source "ChessBase"]
[SourceQuality "1"]
[TimeControl "5400+30"]

1. d4 d5 2. Bf4 Nf6 3. e3 e6 4. Nf3 Bd6 5. Nbd2 O-O 6. Bd3 c5 7. c3 Bxf4 8. exf4 Qd6 9. g3 b6 10. O-O Ba6 11. Qe2 Bxd3 12. Qxd3 Nc6 13. Ne5 Rfc8 14. Rac1 c4 15. Qe3 b5 16. b3 Qa3 17. Ra1 a5 18. Rfc1 Rab8 19. h3 Qd6 20. g4 cxb3 21. axb3 Ra8 22. Ndf3 b4 23. Nxc6 Rxc6 24. Ne5 Rcc8 25. c4 dxc4 26. Nxc4 Qd8 27. Rxa5 Rxc4 28. Rxa8 Rxc1+ 29. Qxc1 Qxa8 30. Qc5 Nd5 31. f5 exf5 32. gxf5 h6 33. f3 Nf4 0-1

[Event "XV South American-ch Open U20 2019"]
[Site "Asuncion"]
[Date "2019.05.12"]
[Round "2.11"]
[White "Araoz Andrade, Ivan Alexander"]
[Black "Ayala Ruiz, Miguel Angel"]
[Result "1-0"]
[ECO "B42"]
[WhiteElo "1843"]
[BlackElo "1444"]
[Annotator "NA"]
[PlyCount "49"]
[EventDate "2019.05.11"]
[EventType "swiss"]
[EventCountry "PAR"]
[SourceTitle "playchess.com"]
[Source "ChessBase"]
[SourceQuality "1"]
[TimeControl "5400+30"]

1. e4 c5 2. Nf3 e6 3. d4 cxd4 4. Nxd4 a6 5. Bd3 Nf6 6. O-O Qc7 7. Qe2 Nc6 8. Nxc6 bxc6 9. e5 Nd5 10. a3 Be7 11. c4 Nb6 12. Nc3 c5 13. f4 f6 14. Qh5+ Kf8 15. exf6 Bxf6 16. f5 Qe5 17. Bf4 Qd4+ 18. Kh1 e5 19. Rad1 g6 20. Bh6+ Ke7 21. fxg6 hxg6 22. Qxg6 Qh4 23. Rxf6 Rxh6 24. Qg7+ Kd8 25. Qf8+ 1-0

[Event "XV South American-ch Open U20 2019"]
[Site "Asuncion"]
[Date "2019.05.12"]
[Round "2.12"]
[White "Avalos Sanabria, Augusto Alfredo"]
[Black "Melian, Juan Sebastian"]
[Result "0-1"]
[ECO "B40"]
[WhiteElo "1474"]
[BlackElo "1786"]
[Annotator "NA"]
[PlyCount "64"]
[EventDate "2019.05.11"]
[EventType "swiss"]
[EventCountry "PAR"]
[SourceTitle "playchess.com"]
[Source "ChessBase"]
[SourceQuality "1"]
[TimeControl "5400+30"]

1. e4 c5 2. Nc3 e6 3. Nf3 a6 4. Be2 b5 5. a3 Bb7 6. d3 d6 7. O-O Nf6 8. h3 Nbd7 9. Bg5 h6 10. Bh4 Be7 11. Qd2 g5 12. Bg3 g4 13. Ne1 gxh3 14. gxh3 h5 15. Kh2 h4 16. Bf4 Qc7 17. Bg4 Nxg4+ 18. hxg4 Nf6 19. f3 e5 20. Be3 d5 21. Bf2 O-O-O 22. Qe2 d4 23. Nd1 Nh7 24. c3 Nf8 25. cxd4 exd4+ 26. Kh3 Ng6 27. Ng2 Qf4 28. Qe1 Qxf3+ 29. Kh2 Bd6+ 30. Kg1 h3 31. Nde3 dxe3 32. Nxe3 h2# 0-1

[Event "XV South American-ch Open U20 2019"]
[Site "Asuncion"]
[Date "2019.05.12"]
[Round "3.8"]
[White "Menacho Admen, Victor Gabriel"]
[Black "Vazquez, Facundo"]
[Result "0-1"]
[ECO "D00"]
[WhiteElo "1103"]
[BlackElo "2086"]
[Annotator "NA RC"]
[PlyCount "58"]
[EventDate "2019.05.11"]
[EventType "swiss"]
[EventCountry "PAR"]
[SourceTitle "playchess.com"]
[Source "ChessBase"]
[SourceQuality "1"]
[TimeControl "5400+30"]

1. d4 Nf6 2. Nf3 g6 3. Nc3 d5 4. Bf4 Bg7 5. e3 O-O 6. Bd3 Nbd7 {D00: 1 d4 d5: Unusual lines} (6... c5 7. h3 Nc6 8. O-O cxd4 9. exd4 Nb4 10. Re1 a6 11. Qe2 Re8 12. Be5 Bd7 13. a3 Nxd3 14. cxd3 Rc8 15. Qd2 Bc6 16. b4 {½-½ (16) Brito,L (2346)-Perdomo,L (2466) Pocos de Caldas 2018}) 7. O-O c6 8. Re1 Nh5 9. Be5 $146 ({Predecessor:} 9. Bg3 Nxg3 10. hxg3 e5 11. dxe5 Nxe5 12. Nxe5 Bxe5 13. Qd2 Qa5 14. a3 c5 {½-½ (38) Bilan,D (1894)-Vystavkin,A (2055) Obninsk 2012}) 9... Nxe5 10. Nxe5 Qc7 11. e4 dxe4 12. Bxe4 Rd8 13. Bf3 Nf4 14. h3 Ne6 15. Re4 Bxe5 16. Rxe5 Nxd4 17. Qe1 Nxf3+ 18. gxf3 Bxh3 19. Rxe7 Qf4 20. Qe3 Qxe3 21. fxe3 Rd2 22. Rc1 Rad8 23. Rxb7 $19 (23. Ne4 Rg2+ 24. Kh1) 23... Rg2+ 24. Kf1 Rxc2+ 25. Kg1 Rg2+ 26. Kh1 Rdd2 27. Rxa7 Rh2+ 28. Kg1 Rdg2+ 29. Kf1 Rh1# 0-1

[Event "XV South American-ch Open U20 2019"]
[Site "Asuncion"]
[Date "2019.05.12"]
[Round "3.10"]
[White "Mayeregger, Arnold"]
[Black "Cosme Contreras, Trilce"]
[Result "1-0"]
[ECO "E81"]
[WhiteElo "1913"]
[BlackElo "2051"]
[Annotator "NA RC"]
[PlyCount "59"]
[EventDate "2019.05.11"]
[EventType "swiss"]
[EventCountry "PAR"]
[SourceTitle "playchess.com"]
[Source "ChessBase"]
[SourceQuality "1"]
[TimeControl "5400+30"]

1. d4 Nf6 2. c4 g6 3. Nc3 Bg7 4. e4 d6 5. f3 O-O 6. Be3 Nfd7 7. Qd2 {E81: King's Indian: Sämisch: 6th move deviations (including 6 Be3 c6)} c5 8. d5 Qa5 9. h4 (9. Bh6 Bxh6 10. Qxh6 b5 11. h4 bxc4 12. h5 Nf6 13. O-O-O Qb4 14. e5 dxe5 15. d6 e6 16. Nh3 Nbd7 17. Ng5 Rb8 18. Rd2 {1-0 (18) Wang,H (2722)-Zhou,J (2652) Danzhou 2010}) 9... h5 10. Nge2 $146 ({Predecessor:} 10. Bh6 Bxc3 11. bxc3 Rd8 12. g4 Nf6 13. gxh5 Nxh5 14. Ne2 Nd7 {1-0 (38) Tudor,V (1400)-Dumitrescu,F (2084) ICCF email 2009}) 10... Ne5 11. Nc1 a6 12. Be2 Bd7 13. Rg1 b5 14. g4 hxg4 15. fxg4 bxc4 16. h5 Rc8 17. Bh6 Bh8 18. Rh1 Qd8 19. Qf4 Qe8 $2 ({Better is} 19... Bf6 $11) 20. Qh2 (20. hxg6 $18 fxg6 21. Bg5) 20... f6 21. hxg6 Nxg6 (21... Qxg6 $16 {was called for.} 22. Bf4 Bg7) 22. Be3 (22. Bxc4 $18 Qf7 23. Be2) 22... Qf7 23. Bxc4 Qg7 24. Be2 Kf7 25. Nd3 Rg8 26. Qh5 a5 27. Nf4 Na6 28. Ne6 Bxe6 29. dxe6+ Ke8 30. Qd5 $18 1-0

[Event "XV South American-ch Open U20 2019"]
[Site "Asuncion"]
[Date "2019.05.12"]
[Round "3.11"]
[White "Avalos Sanabria, Augusto Alfredo"]
[Black "Gomez Barrera, Gonzalo Andres"]
[Result "0-1"]
[ECO "E61"]
[WhiteElo "1474"]
[BlackElo "2058"]
[Annotator "NA RC"]
[PlyCount "80"]
[EventDate "2019.05.11"]
[EventType "swiss"]
[EventCountry "PAR"]
[SourceTitle "playchess.com"]
[Source "ChessBase"]
[SourceQuality "1"]
[TimeControl "5400+30"]

1. d4 Nf6 2. Nf3 g6 3. Bf4 Bg7 4. c4 O-O 5. e3 d6 6. h3 Nfd7 7. Nc3 e5 {E61: King's Indian: Early deviations for White, including Smyslov System} 8. Bh2 Re8 (8... exd4 9. exd4 Nc6 10. Be2 Re8 11. O-O Nb6 12. b3 a6 13. Qd2 Bf5 14. Rad1 d5 15. c5 Nc8 16. Qf4 Re7 17. Rfe1 N8a7 18. Bf1 Rxe1 19. Rxe1 {1-0 (31) Ivanchuk,V (2781)-Svidler,P (2738) Moscow 2008}) 9. dxe5 $146 ({Predecessor:} 9. Be2 e4 10. Nd2 f5 11. Qb3 Nf6 12. O-O-O b6 13. g4 Nc6 14. Rdg1 Na5 15. Qc2 {0-1 (48) Akshayraj,K (2300)-Kononenko,D (2449) Denizli 2003}) 9... dxe5 10. Be2 c6 11. Ne4 Qe7 12. Nd6 Rd8 13. Ne4 Nc5 14. Qc2 Bf5 15. Nfd2 Rxd2 16. Qxd2 Nxe4 17. Qa5 b6 18. Qa4 Nc5 19. Qa3 Nd3+ 20. Bxd3 Qxa3 21. bxa3 Bxd3 22. O-O-O e4 23. f3 Na6 24. fxe4 Bxe4 25. Rhg1 Nc5 26. Bd6 Nd3+ 27. Kd2 Rd8 28. Be7 Rd7 29. Bg5 Nf2+ 30. Ke2 Rxd1 31. Kxf2 Rxg1 32. Kxg1 Bf8 33. a4 Bd3 34. Bf6 Bxc4 35. Bc3 Bxa2 36. a5 b5 37. Kf2 b4 38. Bd4 b3 39. Ke2 c5 40. Bb2 Bg7 0-1

[Event "XV South American-ch Open U20 2019"]
[Site "Asuncion"]
[Date "2019.05.12"]
[Round "3.12"]
[White "Ayala Ruiz, Miguel Angel"]
[Black "Orrego Palermo, Marcelo"]
[Result "1-0"]
[ECO "B01"]
[WhiteElo "1444"]
[BlackElo "1632"]
[Annotator "NA RC"]
[PlyCount "91"]
[EventDate "2019.05.11"]
[EventType "swiss"]
[EventCountry "PAR"]
[SourceTitle "playchess.com"]
[Source "ChessBase"]
[SourceQuality "1"]
[TimeControl "5400+30"]

1. e4 d5 2. exd5 Qxd5 3. Nc3 Qd6 4. d4 Nf6 5. Nf3 a6 6. Bc4 b5 7. Bb3 Bb7 8. O-O e6 9. Bg5 Nbd7 10. Qe2 c5 11. dxc5 Qxc5 12. Rad1 Bd6 13. Bxe6 fxe6 14. Qxe6+ Be7 15. Bxf6 Nxf6 16. Ne5 Rf8 17. Rd7 Bc8 18. Rxe7+ Qxe7 19. Qc6+ Nd7 20. Nxd7 Qxd7 21. Qxa8 Kf7 22. Qd5+ Qxd5 23. Nxd5 Be6 24. Nc7 Bxa2 25. b3 Rc8 26. Nxa6 Rxc2 27. Nb4 Rb2 28. Nxa2 Rxa2 29. Rb1 b4 30. g4 Kf6 31. Kg2 Rc2 32. Re1 Rb2 33. Re3 h6 34. Kg3 Rb1 35. Kf4 Rb2 36. Rf3 Re2 37. Kg3+ Kg6 38. Rf4 h5 39. h3 hxg4 40. hxg4 Rb2 41. Rxb4 Kf6 42. Rf4+ Ke5 43. b4 g6 44. f3 Rb1 45. Re4+ Kf6 46. Kf4 1-0